bitfinex/quotes_SOLUSD_20240906
["timestamp","ask_amount","ask_price","bid_price","bid_amount"]
[1725631116086,7.614,131.34,131.31,0.8580227]
[1725631116390,7.6149,131.32,131.31,0.8580227]
[1725631117013,22.0899,131.35,131.31,0.8580227]
[1725631117185,7.6139,131.34,131.31,0.8580227]
[1725631117518,21.6912,131.39,131.31,0.8580227]
[1725631117998,34.05161865,131.42,131.33,19.0349]
[1725631117999,7.6104,131.4,131.33,19.0349]
[1725631118204,7.6104,131.4,131.35,7.6131]
[1725631118517,25.02149588,131.43,131.35,7.6131]
[1725631118680,7.6109,131.39,131.35,7.6131]
[1725631118878,7.6115,131.38,131.33,19.0349]
[1725631119183,7.6127,131.36,131.31,8.4734227]
[1725631119503,1.90282369,131.42,131.31,8.4734227]
[1725631119504,19.0252,131.41,131.32,7.6149]
[1725631120004,1.90335948,131.4,131.32,7.6149]
[1725631120214,66.90335921,131.4,131.31,0.8580227]
[1725631120500,7.6121,131.37,131.32,7.6144]
[1725631121398,7.6115,131.38,131.33,7.6142]
[1725631122108,7.6114,131.39,131.34,7.6136]
[1725631122611,7.6116,131.38,131.34,7.6136]
[1725631123282,32.37249735,131.43,131.36,19.0308]
[1725631123485,25.02149588,131.43,131.37,7.6119]
[1725631123825,7.6093,131.42,131.38,7.6112]
[1725631123988,22.3753,131.43,131.38,19.0283]
[1725631124305,7.6078,131.45,131.4,26.6356]
[1725631125092,7.6078,131.45,131.41,7.6097]
[1725631125412,7.6082,131.44,131.4,19.0254]
[1725631125617,17.88647349,131.46,131.4,19.0254]
[1725631125782,17.88647349,131.46,131.42,19.0221]
[1725631125783,1.9018824,131.46,131.42,19.0221]
[1725631125987,22.4558,131.47,131.42,19.0221]
[1725631126208,22.4558,131.47,131.41,7.6093]
[1725631126209,7.6073,131.46,131.41,7.6093]
[1725631126582,30.0621,131.47,131.42,7.609]
[1725631126982,7.6069,131.46,131.41,26.6331]
[1725631127404,7.6069,131.46,131.42,7.6088]
[1725631127619,30.0622,131.47,131.42,7.6088]
[1725631127912,9.50890766,131.46,131.41,26.633]
[1725631128201,9.50965414,131.45,131.41,19.0234]
[1725631128612,9.50965414,131.45,131.4,7.6103]
[1725631128908,7.6085,131.44,131.39,7.6109]
[1725631129910,7.6085,131.44,131.39,7.6108]
[1725631130104,7.6092,131.42,131.35,19.0323]
[1725631130281,7.6088,131.43,131.38,7.6109]
[1725631130600,1.90255423,131.42,131.37,19.0289]
[1725631130917,1.90255423,131.42,131.33,38.0713]
[1725631130918,7.611,131.39,131.34,19.0338]
[1725631131213,7.611,131.39,131.34,26.6475]
[1725631131418,9.51459119,131.38,131.34,19.0338]
[1725631131590,19.0236,131.42,131.34,19.0338]
[1725631131791,7.6116,131.38,131.34,19.0338]
[1725631132102,7.6105,131.4,131.35,7.6128]
[1725631132501,7.611,131.39,131.35,7.6128]
[1725631132803,1.90289422,131.38,131.31,0.8580227]
[1725631132990,6.5001,131.4,131.31,0.8580227]
[1725631133184,7.6122,131.37,131.33,7.6139]
[1725631133406,7.6122,131.37,131.33,7.6143]
[1725631133609,7.6149,131.32,131.31,0.8580227]
[1725631135413,7.6145,131.33,131.31,0.8580227]
[1725631136116,7.6149,131.32,131.31,0.8580227]
[1725631136523,13.6727,131.32,131.31,0.8580227]
[1725631136685,21.93142491,131.32,131.31,0.8580227]
[1725631136885,21.93142491,131.32,131.24,19.0485]
[1725631136886,7.6168,131.29,131.24,26.668]
[1725631137610,7.6185,131.26,131.21,26.6737]
[1725631137813,1.9044531,131.29,131.18,19.9149227]
[1725631138019,7.6197,131.24,131.19,7.622]
[1725631138314,7.6196,131.24,131.2,7.6217]
[1725631138530,7.6196,131.24,131.18,19.9149227]
[1725631138697,7.6191,131.25,131.2,7.6215]
[1725631138900,7.6183,131.27,131.22,7.6203]
[1725631139103,7.6183,131.27,131.22,7.6206]
[1725631139603,7.6183,131.27,131.23,7.6202]
[1725631139919,7.6183,131.27,131.2,19.0543]
[1725631140209,7.6185,131.26,131.22,7.6207]
[1725631140412,19.23261182,131.3,131.2,19.0543]
[1725631140413,7.6197,131.24,131.2,19.0543]
[1725631140791,1.90515255,131.28,131.2,19.0543]
[1725631141004,1.90515255,131.28,131.18,0.8580227]
[1725631141005,6.4023,131.24,131.18,0.8580227]
[1725631141310,46.90553587,131.23,131.18,0.8580227]
[1725631141517,7.6215,131.21,131.18,0.8580227]
[1725631141707,7.6207,131.23,131.18,8.4810227]
[1725631141899,6.4023,131.24,131.18,8.4810227]
[1725631142112,6.4023,131.24,131.18,0.8580227]
[1725631142292,46.90555526,131.23,131.18,0.8580227]
[1725631143546,7.622,131.2,131.18,0.8580227]
[1725631143817,45.0,131.23,131.18,0.8580227]
[1725631143818,7.6214,131.21,131.18,0.8580227]
[1725631144425,45.0,131.23,131.18,0.8580227]
[1725631144426,7.6225,131.19,131.18,0.8580227]
[1725631145093,6.3604,131.15,131.1,19.0689]
[1725631145295,7.6266,131.12,131.08,7.6287]
[1725631145506,17.25543863,131.14,131.06,7.6296]
[1725631145507,9.53430346,131.11,131.06,7.6296]
[1725631145815,7.6267,131.12,131.05,0.8580227]
[1725631146122,15.3486,131.14,131.05,0.8580227]
[1725631146419,7.6296,131.07,131.05,0.8580227]
[1725631146591,46.907251,131.13,131.05,0.8580227]
[1725631147000,7.6276,131.11,131.06,7.6299]
[1725631147309,1.90738986,131.1,131.05,27.5644227]
[1725631147725,1.90762073,131.12,131.06,7.63]
[1725631147927,7.6289,131.09,131.05,0.8580227]
[1725631148145,46.90762073,131.13,131.05,8.4886227]
[1725631148315,21.90743435,131.12,131.05,0.8580227]
[1725631148733,46.90740084,131.13,131.06,19.0743]
[1725631148931,45.0,131.13,131.06,19.0743]
[1725631149135,9.53401108,131.12,131.06,19.0743]
[1725631149338,45.0,131.11,131.06,19.0743]
[1725631149638,18.00067251,131.14,131.06,19.0743]
[1725631149931,18.00067251,131.14,131.1,7.6277]
[1725631150134,18.00067251,131.14,131.08,19.0711]
[1725631150135,7.6261,131.13,131.08,26.6995]
[1725631150437,27.53314237,131.14,131.08,19.0711]
[1725631150814,19.90776677,131.14,131.08,19.0711]
[1725631151048,19.90776677,131.14,131.05,0.8580227]
[1725631151049,18.00067251,131.14,131.12,7.6265]
[1725631151237,22.3755,131.19,131.07,38.1472]
[1725631151426,1.90649436,131.18,131.07,38.1472]
[1725631151628,1.90704852,131.17,131.09,19.0703]
[1725631151940,7.6247,131.16,131.1,7.6273]
[1725631152110,9.53239101,131.15,131.1,7.6275]
[1725631152319,7.6243,131.16,131.11,7.6271]
[1725631152716,26.89751719,131.19,131.11,19.0667]
[1725631152918,22.3755,131.19,131.15,7.6247]
[1725631153336,1.90620522,131.18,131.13,26.6901]
[1725631153559,7.6235,131.18,131.13,26.6901]
[1725631153923,1.90643626,131.17,131.14,7.6253]
[1725631154221,9.52955727,131.18,131.13,19.0642]
[1725631154421,9.52955727,131.18,131.05,7.2816227]
[1725631154422,1.90632722,131.17,131.1,19.0686]
[1725631154612,7.6264,131.13,131.07,7.629]
[1725631154821,1.90725397,131.12,131.07,26.7022]
[1725631155433,1.907371,131.16,131.07,26.7022]
[1725631155823,66.907371,131.16,131.07,26.7022]
[1725631156041,7.6263,131.13,131.08,7.6288]
[1725631156538,66.90726963,131.16,131.09,7.6283]
[1725631156859,7.6264,131.13,131.07,19.0732]
[1725631157141,9.53373543,131.12,131.08,7.6287]
[1725631157343,24.50196152,131.16,131.09,7.6283]
[1725631157539,7.6258,131.14,131.09,7.6283]
[1725631157921,7.6258,131.14,131.1,7.6276]
[1725631158224,1.90671194,131.14,131.05,0.8580227]
[1725631158636,7.6273,131.11,131.06,26.7043]
[1725631159945,7.6283,131.09,131.05,8.4886227]
[1725631160243,7.6279,131.1,131.05,0.8580227]
[1725631160554,20.0,131.15,131.05,0.8580227]
[1725631160725,7.6278,131.1,131.05,0.8580227]
[1725631161026,7.6285,131.09,131.05,0.8580227]
[1725631161232,7.629,131.08,131.05,0.8580227]
[1725631161427,7.6295,131.07,131.05,0.8580227]
[1725631161628,19.0683,131.11,131.05,0.8580227]
[1725631161821,7.6293,131.08,131.05,0.8580227]
[1725631162030,46.90758699,131.1,131.05,0.8580227]
[1725631162242,45.0,131.1,131.05,0.8580227]
[1725631162828,45.0,131.1,131.03,7.6317]
[1725631162829,22.7859,131.09,131.03,7.6317]
[1725631163043,22.7859,131.09,130.85,124.44880361]
[1725631163044,7.633,131.01,130.85,124.44880361]
[1725631163224,7.6323,131.03,130.91,39.0513227]
[1725631163433,7.6323,131.03,130.91,97.44282631]
[1725631163632,7.6318,131.03,130.98,7.6347]
[1725631164033,7.6325,131.02,130.97,19.0875]
[1725631164242,1.90830911,131.05,130.97,19.0875]
[1725631164447,7.6319,131.03,130.98,7.6342]
[1725631164760,84.0728,131.08,130.98,7.6342]
[1725631164761,7.6313,131.04,130.98,7.6344]
[1725631164945,1.90814386,131.03,130.94,19.092]
[1725631165139,7.6337,131.0,130.95,7.6363]
[1725631165336,1.90891969,131.02,130.94,19.092]
[1725631165552,1.90895849,131.01,130.94,19.092]
[1725631165854,1.90895849,131.01,130.91,39.0513227]
[1725631165855,50.8530517,131.0,130.91,39.0513227]
[1725631166039,7.6319,131.03,130.91,39.0513227]
[1725631166040,9.08198564,130.92,130.91,39.0513227]
[1725631166235,4.47334361,131.05,130.91,39.0513227]
[1725631166446,7.6307,131.05,130.91,39.0513227]
[1725631166634,50.85351567,131.04,130.91,61.8513227]
[1725631166829,34.98911674,131.03,130.92,78.39150361]
[1725631167057,1.90805766,131.1,130.95,44.195]
[1725631167353,7.6281,131.1,131.04,7.6309]
[1725631167525,30.4144,131.09,131.04,7.6311]
[1725631167727,7.35100147,131.06,130.91,39.0513227]
[1725631167953,19.0732,131.08,130.95,19.0911]
[1725631168259,1.90888452,131.07,130.98,19.0868]
[1725631168423,1.90888452,131.07,130.99,18.21874122]
[1725631168623,7.6316,131.04,131.0,86.11763685]
[1725631168838,7.6302,131.06,131.01,36.39996868]
[1725631169036,1.90888452,131.07,131.02,44.98979331]
[1725631169237,1.90888452,131.07,131.03,44.98979331]
[1725631169549,14.50711755,131.07,130.97,19.0875]
[1725631169763,1.90888452,131.07,130.97,19.0875]
[1725631169929,103.86722436,131.06,130.97,19.0875]
[1725631170134,7.6329,131.02,130.97,19.0875]
[1725631170334,75.59659258,131.01,130.97,26.7224]
[1725631170567,9.54003402,131.05,131.0,7.6335]
[1725631170730,66.62093365,131.04,131.0,7.6335]
[1725631170934,13.98973365,131.03,131.0,7.6335]
[1725631171235,13.99883065,131.02,131.0,7.6334]
[1725631171537,13.99883065,131.02,131.01,7.633]
[1725631171747,7.629,131.08,131.03,7.6316]
[1725631172051,14.00139703,131.07,131.03,7.6312]
[1725631172230,14.00139703,131.06,131.05,7.6306]
[1725631172435,14.00139703,131.06,131.04,26.7087]
[1725631172651,24.69365196,131.09,131.04,26.7087]
[1725631172652,14.00139703,131.05,131.04,26.7087]
[1725631172870,14.00139703,131.05,131.0,7.6331]
[1725631173158,7.6305,131.06,131.0,19.0836]
[1725631173329,7.6295,131.07,131.0,19.0836]
[1725631173531,1.90809339,131.07,130.97,19.0873]
[1725631174138,7.6313,131.04,130.99,7.6337]
[1725631174327,7.6313,131.04,130.95,38.1824]
[1725631174328,7.6306,131.05,131.0,26.7171]
[1725631174534,7.6302,131.06,131.02,7.6322]
[1725631174837,41.8574,131.09,131.05,9.56191908]
[1725631174838,7.6296,131.07,131.05,9.56191908]
[1725631175152,22.7859,131.09,130.98,58.39150361]
[1725631175454,7.6266,131.12,131.0,58.39150361]
[1725631175640,7.6266,131.12,130.95,127.1703]
[1725631175641,7.629,131.08,131.03,7.6316]
[1725631175953,9.07886227,131.06,130.95,38.1824]
[1725631176156,23.53601225,131.05,131.0,26.7162]
[1725631176359,24.98398371,131.04,130.97,19.0871]
[1725631176530,23.0755966,131.03,130.99,7.634]
[1725631176731,15.90522932,131.02,130.99,7.634]
[1725631176943,7.6316,131.04,131.0,7.6335]
[1725631177134,7.6302,131.06,131.01,7.6327]
[1725631177339,1.90807161,131.09,130.96,1.52645729]
[1725631177550,9.53646477,131.09,131.04,7.6311]
[1725631177753,1.90796477,131.09,131.03,26.7105]
[1725631177947,1.9078808,131.08,131.0,19.0837]
[1725631178262,7.6314,131.04,131.0,19.0837]
[1725631178454,19.0713,131.09,131.0,19.0837]
[1725631178634,20.979403,131.09,131.0,19.0837]
[1725631178836,7.6295,131.07,131.02,19.0807]
[1725631179243,7.629,131.08,131.03,7.6315]
[1725631179447,52.6295,131.07,131.03,7.6315]
[1725631180056,7.6295,131.07,131.03,7.6316]
[1725631180254,22.9384,131.1,130.95,54.6562]
[1725631180255,9.53837478,131.06,130.95,76.3648]
[1725631180463,7.6307,131.05,131.01,19.0819]
[1725631180647,1.90824255,131.04,131.01,26.7148]
[1725631181070,1.90824255,131.04,130.95,76.3648]
[1725631181071,7.6287,131.09,131.04,7.6307]
[1725631181255,7.6287,131.09,131.03,19.0792]
[1725631181256,7.6293,131.08,131.03,26.7109]
[1725631181454,7.6298,131.07,131.03,19.0792]
[1725631181764,7.6298,131.07,131.03,26.711]
[1725631182140,14.000012,131.06,131.03,26.711]
[1725631182464,14.000012,131.05,131.03,26.711]
[1725631182646,14.000012,131.04,131.03,26.711]
[1725631183356,14.000012,131.04,131.03,7.6318]
[1725631183847,14.000012,131.04,130.99,6.3123]
[1725631184169,9.08215848,131.01,130.97,15.1299]
[1725631184338,9.08215848,130.99,130.98,26.7215]
[1725631184546,14.000012,130.99,130.98,26.7215]
[1725631184942,14.000012,130.99,130.98,28.24799842]
[1725631185268,9.08215848,131.11,131.01,6.205]
[1725631185444,13.69565646,131.1,131.09,7.628]
[1725631185649,13.69565646,131.1,131.02,1.52559936]
[1725631185650,9.08215848,131.12,131.11,7.6271]
[1725631185842,6.4397,131.18,131.05,16.5345]
[1725631185843,22.77982307,131.15,131.13,7.6258]
[1725631186048,6.4397,131.18,131.14,21.6446125]
[1725631186351,7.6241,131.17,131.15,12.08971456]
[1725631186548,7.6241,131.17,131.12,26.6924]
[1725631186754,6.4397,131.18,131.16,5.85336237]
[1725631186755,14.0628,131.18,131.16,5.85336237]
[1725631186941,40.8256,131.23,131.14,19.0629]
[1725631187146,40.8256,131.23,131.16,7.6241]
[1725631187147,7.6215,131.21,131.16,7.6241]
[1725631187367,7.6215,131.21,131.17,5.85113195]
[1725631187567,7.6215,131.21,131.18,5.85113195]
[1725631187875,7.6214,131.21,131.19,1.91043674]
[1725631188054,7.6214,131.21,131.2,1.91043674]
[1725631188258,7.6214,131.21,131.13,19.0643]
[1725631188259,7.622,131.2,131.15,7.6247]
[1725631188447,7.6228,131.19,131.15,7.6247]
[1725631188957,7.6221,131.2,131.15,7.6247]
[1725631189144,7.6249,131.15,131.1,26.6964]
[1725631189349,7.6244,131.16,131.11,7.6271]
[1725631189845,7.6237,131.17,131.12,7.6263]
[1725631190366,20.96200144,131.2,131.12,7.6263]
[1725631190367,7.6243,131.16,131.12,7.6263]
[1725631190546,7.6241,131.17,131.12,7.6263]
[1725631190948,7.6232,131.18,131.13,7.6258]
[1725631191653,7.622,131.2,131.14,19.063]
[1725631191970,7.622,131.2,131.15,1.52468619]
[1725631192266,7.622,131.2,131.15,7.6247]
[1725631192473,1.90592589,131.2,131.13,7.6258]
[1725631192676,7.6232,131.18,131.13,7.6258]
[1725631192885,7.6232,131.18,131.14,7.6254]
[1725631193047,7.6226,131.19,131.14,7.6254]
[1725631193247,9.52911005,131.18,131.13,26.6897]
[1725631193469,7.6231,131.18,131.13,26.6897]
[1725631195147,7.6231,131.18,131.14,7.6252]
[1725631195355,40.8256,131.23,131.15,20.58621722]
[1725631195669,40.8256,131.23,131.15,19.0614]
[1725631196158,21.7741,131.23,131.16,1.5246177]
[1725631196360,7.6212,131.22,131.18,7.623]
[1725631197169,7.6212,131.22,131.17,26.6823]
[1725631197473,23.67958547,131.23,131.16,7.6242]
[1725631197871,21.7741,131.23,131.17,7.6236]
[1725631198248,7.6218,131.21,131.16,26.6843]
[1725631198451,7.6233,131.18,131.13,26.6894]
[1725631198649,20.95816546,131.22,131.13,26.6894]
[1725631198853,7.625,131.15,131.1,19.0683]
[1725631199059,7.6263,131.13,131.06,6.1915]
[1725631199258,1.90668134,131.2,131.07,1.52534507]
[1725631199460,1.90668134,131.2,131.1,7.6273]
[1725631199461,7.6252,131.15,131.1,7.6273]
[1725631199844,7.6252,131.15,131.11,7.6271]
[1725631200372,45.0,131.21,131.12,1.52515626]
[1725631200575,19.0564,131.19,131.06,44.3393]
[1725631200751,45.0,131.18,131.06,44.3393]
[1725631200952,7.6249,131.15,131.11,26.694]
[1725631201153,7.6269,131.12,131.08,7.6288]
[1725631201368,13.16313049,131.14,131.02,44.3577]
[1725631201573,7.6299,131.07,131.02,7.6324]
[1725631201900,1.9076727,131.06,130.97,6.1967]
[1725631202053,7.6325,131.02,130.96,19.089]
[1725631202254,7.6352,130.98,130.93,19.0938]
[1725631202474,7.6352,130.98,130.93,26.7312]
[1725631202672,7.6342,130.99,130.94,7.637]
[1725631202854,9.54352727,130.98,130.93,26.7314]
[1725631203059,9.54352727,130.98,130.91,0.8580227]
[1725631203060,7.6353,130.98,130.91,0.8580227]
[1725631203552,19.0824,131.02,130.91,0.8580227]
[1725631203553,7.6329,131.02,130.95,7.636]
[1725631203777,7.6329,131.02,130.95,19.0912]
[1725631203981,18.04492049,131.05,130.91,0.8580227]
[1725631203982,45.0,131.01,130.91,0.8580227]
[1725631204283,45.0,131.01,130.94,7.637]
[1725631204284,1.90874628,131.0,130.94,7.637]
[1725631204468,52.6336,131.0,130.93,26.7311]
[1725631204668,7.6341,130.99,130.93,26.7311]
[1725631204980,52.6336,131.0,130.94,7.6369]
[1725631205175,45.0,131.0,130.93,19.0935]
[1725631205477,1.90921638,130.99,130.91,0.8580227]
[1725631205774,7.6371,130.94,130.91,0.8580227]
[1725631206083,45.0,130.99,130.8,6.6298]
[1725631206084,1.90987736,130.93,130.8,6.6298]
[1725631206252,1.91026632,130.92,130.8,6.6298]
[1725631206458,7.64,130.89,130.84,19.1065]
[1725631206676,45.0,130.94,130.8,19.1128]
[1725631206677,1.91057684,130.91,130.8,19.1128]
[1725631206887,1.91057684,130.91,130.7,10.0]
[1725631207057,19.0991,130.9,130.76,19.1181]
[1725631207258,19.0991,130.9,130.72,19.1237]
[1725631207259,22.9488,130.88,130.72,19.1237]
[1725631207475,38.2145,130.85,130.62,66.6298]
[1725631207778,7.6512,130.7,130.64,19.1357]
[1725631207968,1.91291484,130.77,130.64,19.1357]
[1725631208166,8.20714279,130.76,130.65,8.5119227]
[1725631208369,45.0,130.75,130.65,0.8580227]
[1725631208565,1.91307002,130.74,130.65,0.8580227]
[1725631208774,1.91324394,130.73,130.65,0.8580227]
[1725631208974,45.0,130.75,130.65,2.38851773]
[1725631209172,8.20662103,130.76,130.67,19.1309]
[1725631209380,14.79944436,130.79,130.75,7.6479]
[1725631209580,8.24448314,130.82,130.74,19.1217]
[1725631209581,6.3319,130.82,130.74,19.1217]
[1725631209787,1.91185764,130.81,130.7,19.1273]
[1725631209992,1.91185764,130.81,130.7,26.7782]
[1725631210296,51.91185764,130.81,130.66,19.1332]
[1725631210465,7.6488,130.74,130.66,19.1332]
[1725631210665,10.0,130.8,130.66,19.1332]
[1725631210666,7.648,130.76,130.66,19.1332]
[1725631210862,1.91342201,130.78,130.69,7.6514]
[1725631210863,7.6471,130.77,130.69,7.6514]
[1725631211105,45.0,130.76,130.7,19.1276]
[1725631211286,7.6483,130.75,130.67,7.6524]
[1725631211488,54.56179238,130.74,130.67,7.6524]
[1725631211692,9.56284236,130.73,130.65,19.9917227]
[1725631211870,54.56284236,130.73,130.65,19.9917227]
[1725631212487,7.6501,130.72,130.65,19.9917227]
[1725631212671,46.91342899,130.71,130.61,19.1405]
[1725631212875,7.6524,130.68,130.61,19.1405]
[1725631213096,6.4048,130.69,130.58,0.04788961]
[1725631213097,46.91424326,130.67,130.58,0.04788961]
[1725631213392,46.91402768,130.67,130.6,26.7978]
[1725631213605,1.91402768,130.67,130.58,0.04788961]
[1725631213773,7.656,130.62,130.58,0.04788961]
[1725631213975,17.49938899,130.66,130.58,0.04788961]
[1725631214177,45.0,130.65,130.61,7.6562]
[1725631214496,6.4048,130.69,130.62,19.1384]
[1725631214664,6.4048,130.69,130.58,0.04788961]
[1725631214864,8.31849198,130.69,130.58,0.04788961]
[1725631215290,8.31849198,130.69,130.61,26.7957]
[1725631215481,6.4048,130.69,130.61,19.1398]
[1725631215894,31.29405492,130.72,130.69,7.6515]
[1725631216063,16.0943,130.72,130.67,26.7836]
[1725631216268,16.0943,130.72,130.58,96.72859322]
[1725631216269,7.6511,130.7,130.63,7.6549]
[1725631216491,7.6519,130.69,130.63,26.7927]
[1725631216667,1.91356351,130.7,130.63,19.1376]
[1725631216869,1.91389229,130.69,130.58,19.19228961]
[1725631217084,7.6541,130.65,130.58,0.04788961]
[1725631217296,1.91389229,130.69,130.58,0.04788961]
[1725631217297,7.6559,130.62,130.58,0.04788961]
[1725631217596,1.91480149,130.62,130.58,0.04788961]
[1725631217769,15.74517842,130.64,130.58,0.04788961]
[1725631218289,7.6558,130.62,130.58,0.04788961]
[1725631218588,46.91461463,130.63,130.58,0.04788961]
[1725631218795,1.91461463,130.63,130.58,0.04788961]
[1725631218967,45.0,130.62,130.58,0.04788961]
[1725631219167,46.91461463,130.63,130.58,0.04788961]
[1725631219363,46.91461463,130.63,130.52,8.5190227]
[1725631219364,7.6575,130.59,130.52,8.5190227]
[1725631219596,46.91461463,130.63,130.52,0.8580227]
[1725631219597,16.4015,130.62,130.52,0.8580227]
[1725631219800,62.19963162,130.61,130.52,0.8580227]
[1725631220103,1.91564334,130.6,130.52,0.8580227]
[1725631220390,1.91564334,130.6,130.52,20.0114227]
[1725631220596,1.91564334,130.6,130.52,0.8580227]
[1725631220781,1.91564334,130.6,130.39,0.8580227]
[1725631220782,50.0,130.58,130.39,0.8580227]
[1725631220982,19.1523,130.54,130.4,19.1704]
[1725631221290,7.6643,130.48,130.43,19.1667]
[1725631221596,1.91656225,130.47,130.42,7.6675]
[1725631221891,46.91656225,130.47,130.39,20.0298227]
[1725631222099,7.664,130.49,130.43,7.6663]
[1725631222269,15.8693,130.51,130.39,0.8580227]
[1725631222493,1.91593694,130.54,130.39,0.3628374]
[1725631222700,1.91593694,130.54,130.42,7.6674]
[1725631222895,7.6651,130.47,130.41,26.8372]
[1725631223091,1.91698041,130.54,130.44,19.1655]
[1725631223295,1.91698041,130.54,130.39,0.3628374]
[1725631223500,1.91698041,130.54,130.47,26.825]
[1725631223698,1.91698041,130.54,130.43,19.1662]
[1725631224523,7.6628,130.5,130.44,7.6663]
[1725631224691,1.91663535,130.52,130.43,7.6669]
[1725631224893,7.6646,130.47,130.41,7.668]
[1725631225111,1.91664173,130.46,130.39,19.5358374]
[1725631225311,19.1579,130.5,130.39,0.3628374]
[1725631225312,1.91723031,130.45,130.39,0.3628374]
[1725631225695,7.6685,130.41,130.39,0.3628374]
[1725631226005,45.0,130.46,130.39,0.3628374]
[1725631226319,7.6664,130.44,130.39,0.3628374]
[1725631226518,45.44265598,130.52,130.43,7.6668]
[1725631226701,45.44265598,130.52,130.42,19.1674]
[1725631226908,26.28835598,130.52,130.43,7.6669]
[1725631227218,11.256234,130.52,130.39,19.5359374]
[1725631227392,11.256234,130.52,130.39,0.3628374]
[1725631227598,11.256234,130.52,130.39,8.0320374]
[1725631228101,50.0,130.5,130.39,0.3628374]
[1725631228303,45.0,130.49,130.39,0.3628374]
[1725631228521,0.63846939,130.48,130.39,0.3628374]
[1725631228813,6.2013,130.47,130.39,0.3628374]
[1725631229014,50.0,130.43,130.26,38.3827]
[1725631229225,50.0,130.41,130.28,19.189]
[1725631229528,10.0,130.45,130.19,0.8892007]
[1725631229529,50.0,130.32,130.19,0.8892007]
[1725631229813,6.3736,130.29,130.19,0.8892007]
[1725631230027,0.63846939,130.28,130.19,0.8892007]
[1725631230195,45.63846939,130.28,130.19,0.8892007]
[1725631230396,8.31446939,130.28,130.22,7.6792]
[1725631230613,0.63846939,130.27,130.23,19.1966]
[1725631230828,19.1857,130.31,130.19,20.0905007]
[1725631231119,7.6796,130.22,130.19,0.8892007]
[1725631231325,7.6796,130.22,130.1,10.0]
[1725631231326,45.63846939,130.21,130.11,7.6856]
[1725631231522,7.6835,130.15,130.11,1.75675527]
[1725631231729,0.63846939,130.2,130.11,1.75675527]
[1725631231903,0.63846939,130.2,130.13,19.2108]
[1725631232224,19.1965,130.24,130.11,1.75675527]
[1725631232449,115.63846939,130.23,130.11,1.75675527]
[1725631232725,7.6826,130.17,130.11,1.75675527]
[1725631232905,7.6801,130.21,130.14,7.6838]
[1725631233099,0.63846939,130.26,130.11,1.75675527]
[1725631233303,0.63846939,130.28,130.21,7.6797]
[1725631233698,0.63846939,130.28,130.19,19.2018]
[1725631233898,0.63846939,130.27,130.13,10.0]
[1725631234107,0.63846939,130.35,130.2,58.98169607]
[1725631234310,7.6712,130.36,130.29,7.6746]
[1725631234721,0.63846939,130.39,130.34,7.6722]
[1725631234926,0.63846939,130.39,130.33,7.6727]
[1725631235224,0.63846939,130.39,130.31,19.1844]
[1725631235427,0.63846939,130.39,130.32,7.6732]
[1725631235616,0.63846939,130.39,130.31,19.1844]
[1725631235928,8.30766939,130.43,130.27,68.98169607]
[1725631236095,0.63846939,130.47,130.37,19.1755]
[1725631236516,7.6659,130.45,130.38,7.6694]
[1725631236726,8.30486939,130.44,130.37,19.1755]
[1725631236926,22.1457,130.49,130.33,58.98169607]
[1725631236927,0.63846939,130.47,130.33,58.98169607]
[1725631237225,0.63846939,130.46,130.35,38.3556]
[1725631237430,7.6656,130.46,130.36,19.177]
[1725631237596,15.7969,130.5,130.42,7.6671]
[1725631237799,0.63846939,130.49,130.39,19.1728]
[1725631238106,0.63846939,130.49,130.33,58.98169607]
[1725631238107,7.663,130.5,130.42,19.1682]
[1725631238306,0.63846939,130.51,130.44,7.6663]
[1725631238611,1.74017737,130.49,130.45,19.1637]
[1725631239314,1.74017737,130.49,130.48,7.664]
[1725631239620,1.74017737,130.49,130.45,19.1637]
[1725631239820,1.74017737,130.49,130.47,7.6644]
[1725631240238,1.74017737,130.49,130.45,19.1637]
[1725631240520,1.74017737,130.49,130.48,7.664]
[1725631241514,1.74017737,130.49,130.48,26.824]